Cogmind - Beta 17 @@@ ROGUE MODE // 2026.07.17 @ 23:24:20 Player: mischief_2000 Result: Self-destructed Performance ------------- Evolutions (5) 2500 Regions Visited (4) 800 Robots Destroyed (43) 215 Value Destroyed (1476) 1476 Prototype IDs (7) 140 Alien Tech Used (0) 0 Bonus (800) 800 TOTAL SCORE: 5931 Bonus ------- Registered with UFD 300 Met Optimus in HQ 500 Cogmind --------- Core Integrity 316/1000 Matter 160/300 Energy 21/100 System Corruption 10% Temperature Cool (0) Movement Walking (180) Ox1 Location -5/Factory Parts ------- > --- POWER (2) -------- (None) > --- PROPULSION (5) --- Arachnoskeleton > --- UTILITY (6) ------ Advanced Heat Sink High-capacity Storage Unit 0b10 Decoder Chip [Looter] (fused) Self-contained Transmogrifier > --- WEAPON (4) ------- Advanced Plasma Cannon Coil Gun (fused) > --- INVENTORY (20) --- Improved Treads Improved Treads Carbon-fiber Leg Advanced Heat Sink Energy Well (350) High-capacity Matter Pod (200) Advanced Sensor Array Seismic Detector Improved Medium Armor Plating Mapping Drone Bay (3/3) Multitool Peak State ------------ > --- POWER ------------ Light Angular Momentum Engine Neutrino Core > --- PROPULSION ------- Carbon-fiber Leg Carbon-fiber Leg Improved Carbon-fiber Leg Armored Leg Arachnoskeleton > --- UTILITY ---------- Advanced Heat Sink High-capacity Storage Unit Advanced Sensor Array Improved Weapon Shielding Improved Hacking Suite Self-contained Transmogrifier > --- WEAPON ----------- Tesla Rifle Advanced Plasma Cannon Advanced Plasma Cannon KE Penetrator > --- INVENTORY -------- Improved Treads Improved Treads Carbon-fiber Leg Carbon-fiber Leg Carbon-fiber Leg Advanced Heat Sink Advanced Heat Sink Energy Well High-capacity Matter Pod Seismic Detector Medium Armor Plating Medium Armor Plating Improved Medium Armor Plating Mapping Drone Bay Multitool [Rating: 103] Favorites ----------- Power Light Ion Engine Engine Light Ion Engine Power Core Neutrino Core Propulsion Light Treads Treads Light Treads Leg Carbon-fiber Leg Wheel Armored Wheel Utility High-capacity Storage Unit Device Self-contained Transmogrifier Storage High-capacity Storage Unit Processor Improved Signal Interpreter Hackware Improved Hacking Suite Protection Medium Armor Plating Weapon Particle Gun Energy Gun Particle Gun Energy Cannon Advanced Plasma Cannon Ballistic Gun Assault Rifle Special Weapon Multitool Special Melee Weapon Datajack Build | -11 -10 -10 -7 -5 ------- Run | Yrd Mat Sub Scr Fac Slots Evolved 10 | . . . . 10 Power 1 | . . . . 1 Propulsion 3 | . . . . 3 Utility 4 | . . . . 4 Weapon 2 | . . . . 2 Parts Attached 59 | 7 5 4 2 41 Power 5 | 1 1 1 . 2 Engine 3 | 1 1 1 . . Core 2 | . . . . 2 Reactor . | . . . . . Propulsion 16 | 2 . . . 14 Treads 7 | 2 . . . 5 Leg 8 | . . . . 8 Wheel 1 | . . . . 1 Hover . | . . . . . Flight . | . . . . . Utility 18 | 2 2 2 . 12 Device 8 | 1 . 1 . 6 Storage 3 | 1 2 . . . Processor 1 | . . . . 1 Hackware 1 | . . . . 1 Protection 5 | . . 1 . 4 Artifact . | . . . . . Weapon 20 | 2 2 1 2 13 Energy Gun 7 | . 1 . 1 5 Energy Cannon 4 | . . . . 4 Ballistic Gun 7 | 2 1 . 1 3 Ballistic Cannon . | . . . . . Launcher . | . . . . . Special Weapon 1 | . . 1 . . Impact Weapon . | . . . . . Slashing Weapon . | . . . . . Piercing Weapon . | . . . . . Special Melee Weapon 1 | . . . . 1 Unidentified Prototypes 3 | . . 1 . 2 Corrupted Parts 1 | . . . . 1 System Corruption 4 | . . . . 4 Parts Lost 30 | . . 1 . 29 Power 4 | . . 1 . 3 Propulsion 11 | . . . . 11 Utility 7 | . . . . 7 Weapon 8 | . . . . 8 Highest Loss Streak 14 | . . 1 . 14 To Critical Strikes 1 | . . . . 1 Average Backups 15 | 4 14 19 16 13 Power 1 | . 1 2 . . Propulsion 4 | 3 3 3 5 6 Utility 5 | . 2 6 6 6 Weapon 2 | . 6 5 1 . Tool/Special . | . . . . . Unused Backups 30 | . 6 6 9 9 Power 3 | . . . 3 . Propulsion 8 | . 1 1 3 3 Utility 9 | . 1 1 2 5 Weapon 9 | . 4 4 1 . Tool/Special 1 | . . . . 1 Average Slot Usage (%) 92 | . 100 93 99 79 Engine 9 | . 14 7 14 4 Treads 16 | . 28 28 7 11 Leg 2 | . . . . 7 Wheel 7 | . . . 20 2 Device 11 | . 14 6 14 9 Storage 11 | . 14 14 14 5 Processor 1 | . . . . 5 Hackware 1 | . . . . 4 Protection 2 | . . 7 . 3 Energy Gun 11 | . 2 14 14 10 Energy Cannon 1 | . . . . 4 Ballistic Gun 7 | . 25 8 2 2 Special Weapon 5 | . . 5 10 . Peak Build Rating 103 | 7 10 21 30 103 Average Rating 31 | 5 8 12 26 74 On Entrance 13 | . 7 10 21 30 Avg Prop Armor Cover (%) 12 | . . . 14 9 Naked Turns . | . . . . . Heaviest Build 95 | 12 49 55 54 95 Greatest Support 134 | 40 40 40 40 134 Greatest Overweight (x) 4 | 1 1 1 4 2 Average Overweight (x) 1 | . . 1 2 . Largest Inventory Capacity 20 | 8 20 20 20 20 Average Capacity 19 | 7 16 20 20 20 Most Carried 20 | 8 19 20 20 19 Average Carried 16 | 4 14 19 18 14 Final Capacity 20 | 8 20 20 20 20 Final Carried 20 | 8 18 20 20 11 Transmogrified Parts 22 | . . 1 9 12 Integrity Recovered 385 | . . . 103 282 Class Distribution -------------------- 77% | Mutant 6% | Gunner 5% | Derelict-Tank 4% | Scavenger-Skirmisher Dominant Class ---------------- Mutant | -10/Materials Mutant | -10/Subcaves Mutant | -7/Scraptown Gunner | -5/Factory Resources | -11 -10 -10 -7 -5 ----------- Run | Yrd Mat Sub Scr Fac Matter Collected 1290 | 142 170 81 331 566 Remotely . | . . . . . Salvage Created 1942 | 98 337 184 . 1323 Parts 106 | 8 28 18 . 52 Haulers Intercepted 1 | . 1 . . . Recyclers Shooed 3 | 1 . . . 2 Parts Field Recycled . | . . . . . Retrieved Matter . | . . . . . Parts Self-Destructed 18 | . . 18 . . Prevented . | . . . . . Parts Restored . | . . . . . Kills | -11 -10 -10 -7 -5 ------- Run | Yrd Mat Sub Scr Fac Combat Hostiles Destroyed 27 | . 6 5 . 16 Guns 22 | . 6 5 . 11 AOE 1 | . . . . 1 Classes Destroyed 13 | 2 6 2 . 3 Worker 1 | . . . . 1 Builder 3 | . 1 . . 2 Tunneler 4 | 2 1 . . 1 Hauler 1 | . 1 . . . Recycler 2 | 1 . . . 1 Operator 3 | . 2 . . 1 Watcher 2 | . 2 . . . Swarmer 3 | . 3 . . . Grunt 11 | . 3 . . 8 Sentry 3 | . . 1 . 2 Hunter 4 | . . . . 4 Programmer 2 | . . . . 2 Subdweller 4 | . . 4 . . Best Kill Streak 5 | 3 4 2 . 5 Combat Bots Only 4 | . 4 2 . 3 Max Kills in Single Turn 2 | 1 1 1 . 2 Gunslinging . | . . . . . Exploded 1 | . . . . 1 Melee . | . . . . . Uniques/NPCs Destroyed . | . . . . . Combat | -11 -10 -10 -7 -5 -------- Run | Yrd Mat Sub Scr Fac Hostile Shots Fired 473 | . 30 34 . 409 Missed 108 | . 11 9 . 88 Hits 365 | . 19 25 . 321 Projectile 365 | . 19 25 . 321 Critical Strikes 15 | . . 2 . 13 Damage Taken 6597 | . 181 467 . 5949 Core 773 | . 15 74 . 684 Absorbed by Shields . | . . . . . Redirected to Shielding 109 | . . . . 109 Core Remaining (%) 82 | 100 . . 64 . Volleys Fired 186 | 5 34 20 . 127 Largest 4 | 2 2 2 . 4 Hottest 271 | 40 85 100 . 271 Shots Fired 326 | 10 68 35 . 213 Gun 292 | 10 68 32 . 182 Cannon 31 | . . . . 31 Launcher . | . . . . . Special 3 | . . 3 . . Kinetic 152 | 10 66 17 . 59 Thermal 110 | . 2 18 . 90 Explosive . | . . . . . Electromagnetic 64 | . . . . 64 Robot Hit Streak 20 | 6 7 8 . 20 Robot Miss Streak 5 | . 4 3 . 5 Penetration Max 1 | . . . . 1 Secondary Targets 4 | . 2 . . 2 Max Gunslinging Chain 1 | . 1 . . 1 Shots Hit Robots 193 | 6 36 19 . 132 Core Hits 79 | 3 19 10 . 47 Critical Kills 4 | . . . . 4 Critical Parts Destroyed 1 | . . . . 1 Critical Strikes 8 | . . . . 8 Burn 1 | . . . . 1 Meltdown 2 | . . . . 2 Destroy 3 | . . . . 3 Corrupt 2 | . . . . 2 Melee Attacks 1 | . . . . 1 Impact . | . . . . . Slashing . | . . . . . Piercing . | . . . . . Sneak Attacks 1 | . . . . 1 Combat Hostiles . | . . . . . Follow-up Attacks . | . . . . . Damage Inflicted 4515 | 87 394 266 . 3768 Guns 3610 | 87 394 266 . 2863 Cannons 525 | . . . . 525 Explosions 380 | . . . . 380 Melee . | . . . . . Ramming . | . . . . . Kinetic 1446 | 87 361 123 . 875 Thermal 2146 | . 33 143 . 1970 Explosive . | . . . . . Electromagnetic 923 | . . . . 923 Impact . | . . . . . Slashing . | . . . . . Piercing . | . . . . . Highest Corruption 10 | . . . . 10 Average Corruption 7 | . . . . 7 Corruption Purged . | . . . . . Corruption Blocked . | . . . . . Effects 32 | . . . . 32 Message Errors 8 | . . . . 8 Matter Fused 6 | . . . . 6 Heat Flow Errors 3 | . . . . 3 Energy Discharges 5 | . . . . 5 Parts Rejected 1 | . . . . 1 Data Loss (minor) 4 | . . . . 4 Data Loss (major) 2 | . . . . 2 Weapon Failures 3 | . . . . 3 Overload Shots 5 | . . . . 5 Overflow Damage 47 | . . . . 47 Projectiles 11 | . . . . 11 Explosions 36 | . . . . 36 Melee . | . . . . . Knockbacks . | . . . . . Impact . | . . . . . Kinetic . | . . . . . Secondary . | . . . . . Self-Inflicted Damage 102 | . . . . 102 Shots 2 | . . . . 2 Rammed . | . . . . . Targets Rammed . | . . . . . Kicked . | . . . . . Crushed . | . . . . . Highest Temperature 412 | . 24 . . 412 Average Temperature 138 | . 10 . . 145 Received Heat Transfer 1110 | . 54 141 . 915 Effects 9 | . . . . 9 Shutdowns 1 | . . . . 1 Energy Bleed 3 | . . . . 3 Interference 4 | . . . . 4 Matter Decay 1 | . . . . 1 Siege Activations . | . . . . . Martial Activations . | . . . . . Shielding Activations . | . . . . . Robots Disrupted . | . . . . . Combat Hostiles . | . . . . . Robots Corrupted 2 | . . . . 2 Combat Hostiles 2 | . . . . 2 Parts Fried 5 | . . . . 5 Impact Corruptions . | . . . . . Robots Melted 2 | . . . . 2 Combat Hostiles 2 | . . . . 2 Parts Melted 14 | . . 2 . 12 Heat Transferred 3342 | . 74 333 . 2935 Parts Sabotaged . | . . . . . Parts Stolen . | . . . . . Parts Stripped . | . . . . . Power Chain Reactions 2 | . . . . 2 Alert | -11 -10 -10 -7 -5 ------- Run | Yrd Mat Sub Scr Fac Maximum Alert Level 1 | . . . . 1 Low Security (%) 99 | 100 100 . . 99 Level 1 . | . . . . . Level 2 . | . . . . . Level 3 . | . . . . . Level 4 . | . . . . . Level 5 . | . . . . . High Security . | . . . . . Max Security . | . . . . . Peak Influence 223 | 5 107 . . 223 Initial . | . . . . . Average 37 | . 31 . . 46 Influence Increases 925 | 15 226 20 . 664 Destroy 0b10 Robot/C 460 | . 120 20 . 320 Destroy 0b10 Robot/NC 80 | 15 35 . . 30 Destroy Leader 116 | . 36 . . 80 Successful Hack 20 | . 20 . . . Disable Machine 60 | . 15 . . 45 Destroy Structure 114 | . . . . 114 Lose Combat Pursuer 75 | . . . . 75 Influence Decreases 750 | 15 181 65 . 489 Entered New Map 22 | . . 22 . . Time Decay 518 | 15 181 43 . 279 Lost Part 210 | . . . . 210 Squads Dispatched 12 | . 2 . . 10 Investigation 3 | . . . . 3 Extermination 2 | . . . . 2 Reinforcement 4 | . 2 . . 2 Assault 2 | . . . . 2 Garrison 1 | . . . . 1 Intercept . | . . . . . Searches Triggered . | . . . . . Construction Impeded . | . . . . . Haulers Reinforced 1 | . . . . 1 Active Scanning Responses . | . . . . . Cargo Convoy Interrupts 1 | . . . . 1 Stealth | -11 -10 -10 -7 -5 --------- Run | Yrd Mat Sub Scr Fac Distress Signals 1 | . . . . 1 Communications Jammed . | . . . . . Distress Signals . | . . . . . Times Spotted 51 | . 12 6 . 33 Peak Tracking Total 9 | . 4 3 . 9 Tactical Retreats 3 | . . . . 3 Traps | -11 -10 -10 -7 -5 ------- Run | Yrd Mat Sub Scr Fac Traps Triggered 1 | . . . . 1 Indirectly . | . . . . . Trap Hack Attempts . | . . . . . Triggered . | . . . . . Disarmed . | . . . . . Reprogrammed . | . . . . . Reused . | . . . . . Traps Extracted . | . . . . . Installed . | . . . . . Triggered . | . . . . . Machines | -11 -10 -10 -7 -5 ---------- Run | Yrd Mat Sub Scr Fac Machines Disabled 5 | . 1 1 . 3 Max in Single Turn 1 | . 1 1 . 1 Garrison Access 2 | . . . . 2 Machines Repaired . | . . . . . Machines Dismantled . | . . . . . Machines Sabotaged . | . . . . . Overloaded Fab Kills . | . . . . . Hacking | -11 -10 -10 -7 -5 --------- Run | Yrd Mat Sub Scr Fac Machines Accessed 10 | . 3 . 3 4 Terminals 3 | . 3 . . . Fabricators . | . . . . . Repair Stations . | . . . . . Recycling Units 3 | . . . . 3 Scanalyzers . | . . . . . Garrison Access 1 | . . . . 1 Total Hacks 41 | . 8 . 25 8 Successful 32 | . 4 . 25 3 Failed 9 | . 4 . . 5 Catastrophic 2 | . 1 . . 1 Database Lockouts . | . . . . . Manual 13 | . 7 . . 6 Terminals 8 | . 8 . . . Fabricators . | . . . . . Repair Stations . | . . . . . Recycling Units 6 | . . . . 6 Scanalyzers . | . . . . . Garrison Access 2 | . . . . 2 Terminal Hacks 28 | . 3 . 25 . Record 22 | . . . 22 . Part Schematic 1 | . 1 . . . Robot Analysis 3 | . . . 3 . Prototype ID Bank 1 | . 1 . . . Branch Access Points 1 | . 1 . . . Fabricator Hacks . | . . . . . Repair Station Hacks . | . . . . . Recycling Unit Hacks . | . . . . . Scanalyzer . | . . . . . Garrison Access Hacks 1 | . . . . 1 Seal Access 1 | . . . . 1 Unauthorized Hacks 3 | . 1 . . 2 Terminals 1 | . 1 . . . Botnet 1 | . 1 . . . Fabricators . | . . . . . Repair Stations . | . . . . . Recycling Units 2 | . . . . 2 Fedlink 2 | . . . . 2 Scanalyzers . | . . . . . Garrison Access . | . . . . . Data Cores Recovered . | . . . . . Used . | . . . . . Hacking Detections 5 | . 2 . . 3 Full Trace Events 1 | . . . . 1 Feedback Events . | . . . . . Feedback Blocked . | . . . . . Robot Schematics Acquired . | . . . . . Robots Built . | . . . . . Authchips . | . . . . . Time . | . . . . . Total Robot Build Rating . | . . . . . Part Schematics Acquired 1 | . 1 . . . Parts Built . | . . . . . Authchips . | . . . . . Time . | . . . . . Total Part Build Rating . | . . . . . Part Studies Acquired . | . . . . . Parts Repaired . | . . . . . Time . | . . . . . Parts Recycled . | . . . . . Recycled Matter . | . . . . . Retrieved Matter . | . . . . . Retrieved Components . | . . . . . Parts Scanalyzed . | . . . . . Part Schematics Acquired . | . . . . . Parts Damaged . | . . . . . Bothacking | -11 -10 -10 -7 -5 ------------ Run | Yrd Mat Sub Scr Fac Used RIF Installer . | . . . . . Robots Hacked 1 | . . . . 1 Non-combat 1 | . . . . 1 Combat . | . . . . . Robot Hacks Applied 1 | . . . . 1 find_recycling 1 | . . . . 1 Relay Couplers Released 1 | . . . . 1 Machine Destruction 1 | . . . . 1 Fabnet Peak Effective % . | . . . . . Robots Rewired . | . . . . . Allies Hacked . | . . . . . Hacks Repelled . | . . . . . Allies | -11 -10 -10 -7 -5 -------- Run | Yrd Mat Sub Scr Fac Total Allies . | . . . . . Largest Group . | . . . . . Highest-Rated Group . | . . . . . Highest-Rated Ally . | . . . . . Initial UFD Resources 37 | . . . . 37 Total Orders . | . . . . . Ally Attacks . | . . . . . Total Damage . | . . . . . Kills . | . . . . . Allies Corrupted . | . . . . . Allies Melted . | . . . . . Intel | -11 -10 -10 -7 -5 ------- Run | Yrd Mat Sub Scr Fac Active Infowar (turns) 1456 | 49 580 291 . 536 Sensors 467 | . . . . 467 Seismic 972 | 49 580 291 . 52 Decoding 17 | . . . . 17 Robot Analysis Total 3 | . . . 3 . Derelict Logs Recovered 5 | . . 1 4 . Drone Launches . | . . . . . Drone Recoveries . | . . . . . Exploration | -11 -10 -10 -7 -5 ------------- Run | Yrd Mat Sub Scr Fac Turns Passed 4181 | 132 580 1024 1381 1064 Spaces Moved 2216 | 65 258 392 1021 480 Core 4 | 4 . . . . Treads 933 | 61 258 392 46 176 Legs 152 | . . . . 152 Wheels 1127 | . . . 975 152 Hover . | . . . . . Flight . | . . . . . Fastest Speed 50 | 50 160 240 115 110 Average Speed 158 | 154 178 240 133 134 Slowest Speed 240 | 160 240 240 240 170 Overloaded Moves . | . . . . . Propulsion Burnouts . | . . . . . Robots Hopped . | . . . . . Potential Cave-ins . | . . . . . Cave-ins Triggered . | . . . . . Exploration Rate (%) 33 | 5 40 33 78 13 Regions Visited 4 Branch Regions 2 Pre-discovered Areas 7 | . . 1 5 1 Known Exits Taken . | . . . . . Unknown Exits Taken 4 | 1 1 1 1 . Scrap Searched 8 | . . . 8 . Spaces Dug . | . . . . . Terrain Destroyed 67 | . . . . 67 Melee . | . . . . . Projectile 10 | . . . . 10 AOE 57 | . . . . 57 Terrain Rammed . | . . . . . Walls Destroyed . | . . . . . Machines Disabled . | . . . . . Actions | -11 -10 -10 -7 -5 --------- Run | Yrd Mat Sub Scr Fac Total 2590 | 84 320 440 1043 703 Wait 23 | . . 2 . 21 Move 2212 | 64 257 391 1020 480 Hop . | . . . . . Pick Up 59 | 8 15 11 10 15 Fast Attach 29 | 7 1 2 . 19 Attach 25 | . . . 2 23 Detach 1 | . . . . 1 Swap 10 | . 4 2 . 4 Drop 44 | . 9 12 11 12 Fire 186 | 5 34 20 . 127 Melee 1 | . . . . 1 Ram . | . . . . . Kick . | . . . . . Crush . | . . . . . Escape Stasis . | . . . . . Rewire . | . . . . . Trap . | . . . . . Miscellaneous . | . . . . . Route ------- -11/Scrapyard -10/Materials (discovered 3 exits: *Min x2 / [*Sub]) -10/Subcaves -7/Scraptown (discovered 2 exits: *Fac x2) -5/Factory (discovered 3 exits: *Upp x2 / Ext) History --------- Turn | Location | Event 9 | -11/Scrapyard | Discovered new exit (range 15) 133 | -11/Scrapyard | Entered Materials 148 | -10/Materials | Identified exit to Mines 316 | -10/Materials | Build established: Mutant 659 | -10/Materials | Discovered new exit (range 8) 713 | -10/Materials | Entered Subcaves 714 | -10/Subcaves | Approached by a straggling Scientist 826 | -10/Subcaves | Learned location of Zion (-6) 1087 | -10/Subcaves | Scientist uncovered a shortcut to Scraptown 1157 | -10/Subcaves | A swath of the cavern ceiling suddenly collapsed 1443 | -10/Subcaves | Shifting Twisted Machinery released Sub. Laser 1529 | -10/Subcaves | Visited 4L-MR0's lab 1545 | -10/Subcaves | Found Prototype Device 1545 | -10/Subcaves | Identified Sfc. Transmogrifier 1557 | -10/Subcaves | Found Prototype Leg 1737 | -10/Subcaves | Entered Scraptown 2017 | -7/Scraptown | Visited Comm Corps 2073 | -7/Scraptown | Scanned Subdweller tech in exchange for log data 2075 | -7/Scraptown | Learned location of 1 exit from Research 2076 | -7/Scraptown | Learned location of Testing (-2) 2077 | -7/Scraptown | Learned Research stockpile data 2078 | -7/Scraptown | Learned Factory emergency access door positions 2132 | -7/Scraptown | Discovered new exit (range 13) 2367 | -7/Scraptown | Visited Symbiants 2383 | -7/Scraptown | Visited Bundlers 2469 | -7/Scraptown | Visited UFD Registry 2470 | -7/Scraptown | Registered with UFD as "Waveframe" 2511 | -7/Scraptown | Visited Cartography Club 2633 | -7/Scraptown | Learned location of Extension (-5) 2633 | -7/Scraptown | Learned location of Cetus (-5) 2633 | -7/Scraptown | Learned location of Armory (-3) 2633 | -7/Scraptown | Learned 8 Materials zone layouts 2633 | -7/Scraptown | Learned 4 Access zone layouts 2633 | -7/Scraptown | Learned 4 Recycling zone layouts 2633 | -7/Scraptown | Learned 12 Upper Caves zone layouts 2633 | -7/Scraptown | Learned 20 Upper Caves zone layouts 2633 | -7/Scraptown | Learned 16 Proximity Caves zone layouts 2633 | -7/Scraptown | Learned 20 Proximity Caves zone layouts 2633 | -7/Scraptown | Learned 4 Hub_04(d) zone layouts 2633 | -7/Scraptown | Learned 4 Armory zone layouts 2633 | -7/Scraptown | Learned Materials emergency access door positions 2633 | -7/Scraptown | Learned location of 3 exits from Lower Caves 2633 | -7/Scraptown | Learned location of 2 exits from Upper Caves 2633 | -7/Scraptown | Learned location of 3 exits from Upper Caves 2673 | -7/Scraptown | Visited Observation Area 2705 | -7/Scraptown | Visited Analyses Database 2735 | -7/Scraptown | Visited Science Guys 2773 | -7/Scraptown | Visited Research Penetration Think Tank 2812 | -7/Scraptown | Visited DA-N13 Charitable Foundation 2818 | -7/Scraptown | Found DCF Scrap (28 items) 2876 | -7/Scraptown | Visited Scrap Suit Storage 2926 | -7/Scraptown | Visited Botcube Research 3028 | -7/Scraptown | Met Optimus 3028 | -7/Scraptown | Accepted into 0bPrime 3112 | -7/Scraptown | Discovered new exit (range 5) 3118 | -7/Scraptown | Entered Factory 3118 | -5/Factory | Evolved 10 slots: Power x1, Propulsion x3, Utility x4, Weapon x2 3119 | -5/Factory | Identified exit to Upper Caves 3119 | -5/Factory | Identified exit to Extension 3297 | -5/Factory | Discovered exit to Upper Caves (range 14) 3325 | -5/Factory | Loaded intel: 8 recycling unit locations 3525 | -5/Factory | Lost 12 parts (1p5n2u4w) 3776 | -5/Factory | Garrison activated, responded to threat 3830 | -5/Factory | Identified Arachnoskeleton 3831 | -5/Factory | Attached Arachnoskeleton, gained temporary slots: Propulsion x3 3933 | -5/Factory | Learned location of Protoforge (-3) 3956 | -5/Factory | Cargo convoy interrupted 3991 | -5/Factory | System corruption reached 10% 4135 | -5/Factory | Core integrity fell below 50% 4182 | -5/Factory | Self-destructed Last Messages --------------- 04173_ U-05 Engineer lays Concrete. 04173_ Slug penetrates Fusion Modulator. 04173_ K-01 Serf collects debris. 04173_ Penetrated by Slug. 04173_ G-50 Soldier destroyed. 04174_ U-05 Engineer lays Concrete. 04174_ U-05 Engineer builds a Wall. 04176_ U-05 Engineer lays Concrete. 04176_ Slug penetrates U-05 Engineer. 04176_ U-05 Engineer destroyed. 04176_ K-01 Serf collects debris. 04177_ Sfc. Transmogrifier converts KE Penetrator into Coil Gun. 04177_ U-05 Engineer builds a Wall. 04179_ Slug penetrates G-50 Soldier. 04179_ Slug penetrates Wall. 04179_ Penetrated by Slug. 04180_ K-01 Serf collects debris. 04180_ Med. Armor Plating destroyed. 04181_ U-05 Engineer builds a Wall. Map ----- +----------------------------------------------------+ | ?????????????????????????????????????????# [" " | | ?????????????????????????????????????????# # " | | ?????????????????????????????????????????# ### | | ?????????????????????????????????????????# ### | | ?????????????????????????????????????????# # | | ?????????????????????????????????????????# # | | ?????????????????????????????????????????# # | | ?????????????????????????????????????????# " | | ?????????????????????????????????????????# " | | ?????????????????????????????????????????# # | | ??????????????????????? ???????????????# + | | ????????????????????? ???????????????+ # | | ?????????????????? ???? "????????# # | | ???????????????? ???? "????????# # | | ????????????????? ! ?## ""???????# # | | ????????????????? # ; ???????# # | | ?????????????????? ; # ????????# ### | | ??????????????????? ! ; #u =?????????# #?? | | ???????????????????#;;;;;;;;#;;####?#+#??# #?? | | ?+?????????????????# ; % #?# #??# #?? | | ???????????????????# ;% #?# #??# #?? | | ???????????????????# ; k #?# #??# #?? | | ???????????????????# ### #### #?? | | ???????????????????# ; != % t # =% #?? | | ?+?????????????????# = ||g # #?? | | ???????????????????# ; @!%* % + +?? | | ???????????????????# ; # #?? | | ???????????????????# ; u% #?? | | ???????????????????#; w ### #### #?? | | ?????????????????? ;=%! #?# #??# #?? | | ????????????????"" #;[[ #?# #??# #?? | | ????????????????""?# ;m;;;;;#######?# #??# #?? | | ????????????????"??##;;;;;;###??????# #??# #?? | | ?????????????????? /h ???????? #??# #?? | | ????????????????? # ???????? #??? ?? | | ???????????????? # ???????? ???? ##? | | ??????????????? ?+ ???????? ???? #?? | | ????????????????#??#########????????# ???? #?? | | ????????????????????????????????????? ???? #?? | | ????????????????????????????????????? ???? #?? | | ????????????????????????????????????? ??????? ???? | | ?????????????????????????????????????+???????????? | | ?????????????????????????????????????????????????? | | ?????????????????????????????????????????????????? | | ?????????????????????????????????????????????????? | | ?????????????????????????????????????????????????? | | ?????????????????????????????????????????????????? | | ?????????????????????????????????????????????????? | | ?????????????????????????????????????????????????? | | ?????????????????????????????????????????????????? | +----------------------------------------------------+ Best States ------------- Heat Dissipation 78 Energy Generation 32 Energy Capacity 365 Matter Stores 300 Matter Capacity 300 Sight Range 16 Robot Scan Range 16 Terrain Scan Density 10 Armor Coverage 675 Weapon Shielding 66 Evasion (%) 55 Armor Integrity Analysis 30 Recoil Reduction 5 Energy Filtering 50 Offensive Hacking 12 Item Schematics ----------------- Hcp. Storage Unit | -10/Materials | Hacked Robot Schematics ------------------ None Fabricated ------------ Nothing Repaired ---------- Nothing Studied --------- None Alien Tech Used ----------------- None Achievements -------------- None Challenges ------------ None Game ------ Seed ArmoredThrowingCompressor Manual? 0 Play Time 00:33:49 Cumulative 362.9 hours Start 2026.07.17 @ 22:51:38 End 2026.07.17 @ 23:24:20 Sessions 1 Manual Loads 0 Difficulty Rogue Special Mode None Game No. 186 Rogue 186 Adventurer 0 Explorer 0 Win Type - Total 7 Types 4/0/1/1/0/0/0/1/0/0 Lore% 70 Gallery% 72 Achievement% 63 Wizard Run 0 Options --------- Layout 1 ASCII 0 Keyboard 0 Movement Mouse Keybinds 0 Fullscreen 1 Font 18/SmallcapsGlow Map View 54x44 Zoom Use 0% Tactical HUD 1 Map Filters NONE Filters NONE Steam 0 RUN: 9d3bfae4-76dc-46d1-88ca-5b12502bba1a